fUSD/lending_fUSD_20250108
["ID","MTS","AMOUNT","RATE_DAILY","PERIOD"]
[348159261,1736358988031,-500.0,0.00010073,2]
[348159262,1736358988053,-500.0,0.00010073,2]
[348159263,1736358988076,-542.5,0.00010073,2]
[348159264,1736358988098,-1155.97,0.00010073,2]
[348159265,1736358988121,-500.0,0.00010073,2]
[348159266,1736358988143,-500.0,0.00010073,2]
[348159267,1736358988168,-500.0,0.00010073,2]
[348159268,1736358988190,-500.0,0.00010073,2]
[348159269,1736358988220,-500.0,0.00010073,2]
[348159270,1736358988243,-500.0,0.00010073,2]
[348159271,1736358988264,-1380.91,0.00010073,2]
[348159272,1736358988288,-500.0,0.00010073,2]
[348159273,1736358988313,-780.58,0.00010073,2]
[348159274,1736358988338,-798.71,0.00010073,2]
[348159275,1736358988359,-225.05,0.00010073,2]
[348159276,1736358988382,-500.0,0.00010073,2]
[348159277,1736358988405,-500.0,0.00010073,2]
[348159278,1736358988434,-500.0,0.00010073,2]
[348159279,1736358988461,-604.69,0.00010073,2]
[348159280,1736358988484,-500.0,0.00010073,2]
[348159281,1736358988508,-500.0,0.00010073,2]
[348159282,1736358988531,-327.0483646,0.00010073,2]
[348159283,1736358988554,-590.31,0.00010073,2]
[348159284,1736358988578,-500.0,0.00010073,2]
[348159285,1736358988601,-519.97,0.00010073,2]
[348159286,1736358988624,-500.0,0.00010073,2]
[348159287,1736358988648,-832.31,0.00010073,2]
[348159288,1736358988671,-500.0,0.00010073,2]
[348159289,1736358988695,-500.0,0.00010073,2]
[348159290,1736358988718,-500.0,0.00010073,2]
[348159291,1736358988741,-500.0,0.00010073,2]
[348159292,1736358988765,-500.0,0.00010073,2]
[348159293,1736358988787,-500.0,0.00010073,2]
[348159294,1736358988810,-500.0,0.00010073,2]
[348159295,1736358988832,-500.0,0.00010073,2]
[348159296,1736358988853,-500.0,0.00010073,2]
[348159297,1736358988877,-529.95,0.00010073,2]
[348159298,1736358988900,-500.0,0.00010073,2]
[348159299,1736358988922,-500.0,0.00010073,2]
[348159300,1736358988948,-500.0,0.00010073,2]
[348159301,1736358988971,-500.0,0.00010073,2]
[348159302,1736358988998,-621.7,0.00010073,2]
[348159303,1736358989024,-500.0,0.00010073,2]
[348159304,1736358989047,-510.54,0.00010073,2]
[348159305,1736358989072,-1249.9,0.00010073,2]
[348159306,1736358989096,-500.0,0.00010073,2]
[348159307,1736358989120,-211.73284021,0.00010073,2]
[348159308,1736358989145,-500.0,0.00010073,2]
[348159309,1736358989173,-500.0,0.00010073,2]
[348159310,1736358989202,-500.0,0.00010073,2]
[348159311,1736358989226,-500.0,0.00010073,2]
[348159312,1736358989249,-1811.39,0.00010073,2]
[348159313,1736358989271,-500.0,0.00010073,2]
[348159314,1736358989294,-500.0,0.00010073,2]
[348159315,1736358989315,-529.83880091,0.00010073,2]
[348159316,1736358989337,-500.0,0.00010073,2]
[348159317,1736358989359,-500.0,0.00010073,2]
[348159318,1736358989382,-500.0,0.00010073,2]
[348159319,1736358989406,-500.0,0.00010073,2]
[348159320,1736358989428,-1179.45,0.00010073,2]
[348159321,1736358989456,-500.0,0.00010073,2]
[348159322,1736358989482,-500.0,0.00010073,2]
[348159323,1736358989508,-2286.74,0.00010073,2]
[348159324,1736358989533,-500.0,0.00010073,2]
[348159325,1736358989557,-500.0,0.00010073,2]
[348159326,1736358989581,-500.0,0.00010073,2]
[348159327,1736358989605,-500.0,0.00010073,2]
[348159328,1736358989629,-500.0,0.00010073,2]
[348159329,1736358989653,-500.0,0.00010073,2]
[348159330,1736358989677,-500.0,0.00010073,2]
[348159331,1736358989702,-197.76783718,0.00010073,2]
[348159332,1736358989727,-500.0,0.00010073,2]
[348159333,1736358989752,-500.0,0.00010073,2]
[348159334,1736358989777,-500.0,0.00010073,2]
[348159335,1736358989801,-500.0,0.00010073,2]
[348159336,1736358989825,-1816.03,0.00010073,2]
[348159337,1736358989848,-500.0,0.00010073,2]
[348159338,1736358989873,-500.0,0.00010073,2]
[348159339,1736358989898,-500.0,0.00010073,2]
[348159340,1736358989927,-500.0,0.00010073,2]
[348159341,1736358989962,-500.0,0.00010073,2]
[348159342,1736358989989,-500.0,0.00010073,2]
[348159343,1736358990015,-500.0,0.00010073,2]
[348159344,1736358990041,-500.0,0.00010073,2]
[348159345,1736358990068,-500.0,0.00010073,2]
[348159346,1736358990095,-500.0,0.00010073,2]
[348159347,1736358990119,-885.54,0.00010073,2]
[348159348,1736358990143,-1933.84,0.00010073,2]
[348159349,1736358990170,-500.0,0.00010073,2]
[348159350,1736358990386,-500.0,0.00010073,2]
[348159351,1736358990411,-500.0,0.00010073,2]
[348159352,1736358990435,-500.0,0.00010073,2]
[348159353,1736358990460,-500.0,0.00010073,2]
[348159354,1736358990484,-500.0,0.00010073,2]
[348159355,1736358990508,-500.0,0.00010073,2]
[348159356,1736358990533,-500.0,0.00010073,2]
[348159357,1736358990555,-500.0,0.00010073,2]
[348159358,1736358990579,-500.0,0.00010073,2]
[348159359,1736358990602,-500.0,0.00010073,2]
[348159360,1736358990625,-500.0,0.00010073,2]
[348159361,1736358990648,-500.0,0.00010073,2]
[348159362,1736358990671,-1788.43,0.00010073,2]
[348159363,1736358990695,-500.0,0.00010073,2]
[348159364,1736358990717,-500.0,0.00010073,2]
[348159365,1736358990740,-1922.91,0.00010073,2]
[348159366,1736358990763,-500.0,0.00010073,2]
[348159367,1736358990786,-500.0,0.00010073,2]
[348159368,1736358990808,-500.0,0.00010073,2]
[348159369,1736358990831,-500.0,0.00010073,2]
[348159370,1736358990854,-539.613418,0.00010073,2]
[348159371,1736358990876,-562.8,0.00010073,2]
[348159372,1736358990902,-500.0,0.00010073,2]
[348159373,1736358990924,-158.091978,0.00010073,2]
[348159374,1736358990949,-500.0,0.00010073,2]
[348159375,1736358990971,-156.728286,0.00010073,2]
[348159376,1736358990995,-500.0,0.00010073,2]
[348159377,1736358991018,-500.0,0.0001021,2]
[348159378,1736358991042,-1993.93,0.00010309,2]
[348159379,1736358991065,-772.72,0.00010309,2]
[348159380,1736358991089,-1032.81,0.00010309,2]
[348159381,1736358991112,-672.99,0.00010309,2]
[348159382,1736358991135,-577.27,0.00010309,2]
[348159383,1736358991159,-500.0,0.00010309,2]
[348159384,1736358991184,-585.43,0.00010309,2]
[348159385,1736358991212,-805.11,0.00010309,2]
[348159386,1736358991236,-1582.51,0.00010309,2]
[348159387,1736358991259,-570.43,0.00010309,2]
[348159388,1736358991281,-500.0,0.0001031,2]
[348159389,1736358991304,-500.0,0.0001031,2]
[348159390,1736358991328,-795.61,0.0001031,2]
[348159391,1736358991351,-500.0,0.0001031,2]
[348159392,1736358991374,-576.55,0.0001031,2]
[348159393,1736358991399,-500.0,0.0001031,2]
[348159394,1736358991424,-598.37,0.0001031,2]
[348159395,1736358991452,-1270.09,0.0001031,2]
[348159396,1736358991476,-1213.61,0.0001031,2]
[348159397,1736358991500,-1570.6,0.0001031,2]
[348159398,1736358991526,-5730.61,0.0001031,2]
[348159399,1736358991549,-500.0,0.00010346,2]
[348159400,1736358991571,-500.0,0.00010346,2]
[348159401,1736358991594,-500.0,0.00010346,2]
[348159402,1736358991618,-500.0,0.00010347,2]
[348159403,1736358991641,-500.0,0.00010347,2]
[348159404,1736358991664,-500.0,0.00010347,2]
[348159405,1736358991688,-500.0,0.00010347,2]
[348159406,1736358991713,-500.0,0.00010347,2]
[348159407,1736358991736,-500.0,0.00010347,2]
[348159408,1736358991760,-500.0,0.00010347,2]
[348159409,1736358991784,-500.0,0.00010347,2]
[348159410,1736358991808,-500.0,0.00010347,2]
[348159411,1736358991832,-500.0,0.00010347,2]
[348159412,1736358991855,-500.0,0.00010347,2]
[348159413,1736358991879,-245.83,0.00010347,2]
[348159414,1736358991903,-500.0,0.00010347,2]
[348159415,1736358991929,-500.0,0.00010347,2]
[348159416,1736358991956,-500.0,0.00010347,2]
[348159417,1736358991985,-500.0,0.00010347,2]
[348159418,1736358992009,-799.64,0.00010347,2]
[348159419,1736358992031,-500.0,0.00010347,2]
[348159420,1736358992054,-500.0,0.00010347,2]
[348159421,1736358992077,-500.0,0.00010347,2]
[348159422,1736358992100,-500.0,0.00010347,2]
[348159423,1736358992125,-500.0,0.00010347,2]
[348159424,1736358992150,-500.0,0.00010347,2]
[348159425,1736358992175,-500.0,0.00010347,2]
[348159426,1736358992201,-500.0,0.00010347,2]
[348159427,1736358992225,-622.07961294,0.00010347,2]
[348159428,1736358992249,-500.0,0.00010347,2]
[348159429,1736358992272,-689.26,0.00010347,2]
[348159430,1736358992299,-500.0,0.00010347,2]
[348159431,1736358992325,-500.0,0.00010347,2]
[348159432,1736358992349,-500.0,0.00010347,2]
[348159433,1736358992372,-500.0,0.00010347,2]
[348159434,1736358992397,-500.0,0.00010347,2]
[348159435,1736358992422,-500.0,0.00010347,2]
[348159436,1736358992447,-656.53,0.00010347,2]
[348159437,1736358992473,-500.0,0.00010347,2]
[348159438,1736358992496,-500.0,0.00010347,2]
[348159439,1736358992519,-500.0,0.00010347,2]
[348159440,1736358992543,-542.5,0.00010347,2]
[348159441,1736358992571,-1155.97,0.00010347,2]
[348159442,1736358992595,-500.0,0.00010347,2]
[348159443,1736358992621,-500.0,0.00010347,2]
[348159444,1736358992646,-500.0,0.00010347,2]
[348159445,1736358992671,-500.0,0.00010347,2]
[348159446,1736358992698,-1380.91,0.00010347,2]
[348159447,1736358992721,-500.0,0.00010347,2]
[348159448,1736358992746,-780.58,0.00010347,2]
[348159449,1736358992770,-798.71,0.00010347,2]
[348159450,1736358992794,-500.0,0.00010347,2]
[348159451,1736358992818,-604.69,0.00010347,2]
[348159452,1736358992841,-614.9,0.00010347,2]
[348159453,1736358992864,-500.0,0.00010347,2]
[348159454,1736358992888,-590.31,0.00010347,2]
[348159455,1736358992914,-500.0,0.00010347,2]
[348159456,1736358992938,-519.97,0.00010347,2]
[348159457,1736358992966,-500.0,0.00010347,2]
[348159458,1736358992993,-832.31,0.00010347,2]
[348159459,1736358993016,-500.0,0.00010347,2]
[348159460,1736358993040,-500.0,0.00010347,2]
[348159461,1736358993065,-500.0,0.00010347,2]
[348159462,1736358993090,-500.0,0.00010347,2]
[348159463,1736358993115,-500.0,0.00010347,2]
[348159464,1736358993139,-500.0,0.00010347,2]
[348159465,1736358993165,-500.0,0.00010347,2]
[348159466,1736358993192,-500.0,0.00010347,2]
[348159467,1736358993220,-500.0,0.00010347,2]
[348159468,1736358993244,-500.0,0.00010347,2]
[348159469,1736358993270,-500.0,0.00010347,2]
[348159470,1736358993296,-219.516912,0.00010347,2]
[348159471,1736358993320,-500.0,0.00010347,2]
[348159472,1736358993345,-621.7,0.00010347,2]
[348159473,1736358993369,-500.0,0.00010347,2]
[348159474,1736358993395,-510.54,0.00010347,2]
[348159475,1736358993420,-1249.9,0.00010347,2]
[348159476,1736358993447,-500.0,0.00010347,2]
[348159477,1736358993471,-500.0,0.00010347,2]
[348159478,1736358993501,-500.0,0.00010347,2]
[348159479,1736358993526,-500.0,0.00010347,2]
[348159480,1736358993550,-500.0,0.00010347,2]
[348159481,1736358993577,-1811.39,0.00010347,2]
[348159482,1736358993602,-500.0,0.00010347,2]
[348159483,1736358993626,-500.0,0.00010347,2]
[348159484,1736358993650,-500.0,0.00010347,2]
[348159485,1736358993674,-500.0,0.00010347,2]
[348159486,1736358993701,-500.0,0.00010347,2]
[348159487,1736358993726,-500.0,0.00010347,2]
[348159488,1736358993750,-1179.45,0.00010347,2]
[348159489,1736358993775,-500.0,0.00010347,2]
[348159490,1736358993798,-500.0,0.00010347,2]
[348159491,1736358993821,-2286.74,0.00010347,2]
[348159492,1736358993846,-500.0,0.00010347,2]
[348159493,1736358993871,-500.0,0.00010347,2]
[348159494,1736358993896,-500.0,0.00010347,2]
[348159495,1736358993924,-500.0,0.00010347,2]
[348159496,1736358993948,-500.0,0.00010347,2]
[348159497,1736358993973,-500.0,0.00010347,2]
[348159498,1736358993999,-500.0,0.00010347,2]
[348159499,1736358994023,-500.0,0.00010347,2]
[348159500,1736358994047,-500.0,0.00010347,2]
[348159501,1736358994070,-500.0,0.00010347,2]
[348159502,1736358994095,-1816.03,0.00010347,2]
[348159503,1736358994118,-500.0,0.00010347,2]
[348159504,1736358994142,-500.0,0.00010347,2]
[348159505,1736358994166,-500.0,0.00010347,2]
[348159506,1736358994191,-500.0,0.00010347,2]
[348159507,1736358994220,-500.0,0.00010347,2]
[348159508,1736358994245,-500.0,0.00010347,2]
[348159509,1736358994270,-500.0,0.00010347,2]
[348159510,1736358994296,-500.0,0.00010347,2]
[348159511,1736358994321,-885.54,0.00010347,2]
[348159512,1736358994347,-500.0,0.00010347,2]
[348159513,1736358994373,-1933.84,0.00010347,2]
[348159514,1736358994397,-500.0,0.00010347,2]
[348159515,1736358994421,-500.0,0.00010347,2]
[348159516,1736358994447,-500.0,0.00010347,2]
[348159517,1736358994473,-500.0,0.00010347,2]
[348159518,1736358994497,-500.0,0.00010347,2]
[348159519,1736358994522,-500.0,0.00010347,2]
[348159520,1736358994545,-500.0,0.00010347,2]
[348159521,1736358994568,-500.0,0.00010347,2]
[348159522,1736358994591,-500.0,0.00010347,2]
[348159523,1736358994615,-500.0,0.00010347,2]
[348159524,1736358994640,-500.0,0.00010347,2]
[348159525,1736358994665,-500.0,0.00010347,2]
[348159526,1736358994912,-1788.43,0.00010347,2]
[348159527,1736358994939,-500.0,0.00010347,2]
[348159528,1736358994964,-1922.91,0.00010347,2]
[348159529,1736358994990,-500.0,0.00010347,2]
[348159530,1736358995015,-500.0,0.00010347,2]
[348159531,1736358995038,-500.0,0.00010347,2]
[348159532,1736358995063,-500.0,0.00010347,2]
[348159533,1736358995088,-539.613418,0.00010347,2]
[348159534,1736358995112,-500.0,0.00010347,2]
[348159535,1736358995135,-500.0,0.00010347,2]
[348159536,1736358995158,-500.0,0.00010347,2]
[348159537,1736358995183,-275.30934455,0.00010484,2]
[348159538,1736358995207,-1153.3597,0.00010521,2]
[348159539,1736358995230,-500.0,0.00010542,2]
[348159540,1736358995253,-241.6803545,0.00010542,2]
[348159541,1736358995278,-1993.93,0.00010583,2]
[348159542,1736358995302,-772.72,0.00010583,2]
[348159543,1736358995326,-1032.81,0.00010583,2]
[348159544,1736358995349,-672.99,0.00010583,2]
[348159545,1736358995373,-577.27,0.00010583,2]
[348159546,1736358995398,-262.72801177,0.00010583,2]
[348159547,1736358995425,-585.43,0.00010583,2]
[348159548,1736358995450,-805.11,0.00010583,2]
[348159549,1736358995474,-1582.51,0.00010583,2]
[348159550,1736358995499,-570.43,0.00010583,2]
[348159551,1736358995523,-500.0,0.00010584,2]
[348159552,1736358995548,-500.0,0.00010584,2]
[348159553,1736358995573,-795.61,0.00010584,2]
[348159554,1736358995598,-500.0,0.00010584,2]
[348159555,1736358995624,-576.55,0.00010584,2]
[348159556,1736358995649,-500.0,0.00010584,2]
[348159557,1736358995672,-598.37,0.00010584,2]
[348159558,1736358995697,-1270.09,0.00010584,2]
[348159559,1736358995721,-1213.61,0.00010584,2]
[348159560,1736358995746,-1570.6,0.00010584,2]
[348159561,1736358995771,-5730.61,0.00010584,2]
[348159562,1736358995796,-500.0,0.0001062,2]
[348159563,1736358995820,-500.0,0.0001062,2]
[348159564,1736358995845,-500.0,0.00010621,2]
[348159565,1736358995868,-500.0,0.00010621,2]
[348159566,1736358995892,-500.0,0.00010621,2]
[348159567,1736358995920,-500.0,0.00010621,2]
[348159568,1736358995945,-500.0,0.00010621,2]
[348159569,1736358995971,-500.0,0.00010621,2]
[348159570,1736358995995,-799.64,0.00010621,2]
[348159571,1736358996019,-500.0,0.00010621,2]
[348159572,1736358996042,-500.0,0.00010621,2]
[348159573,1736358996065,-500.0,0.00010621,2]
[348159574,1736358996089,-500.0,0.00010621,2]
[348159575,1736358996111,-500.0,0.00010621,2]
[348159576,1736358996133,-500.0,0.00010621,2]
[348159577,1736358996157,-500.0,0.00010621,2]
[348159578,1736358996184,-500.0,0.00010621,2]
[348159579,1736358996212,-689.26,0.00010621,2]
[348159580,1736358996235,-500.0,0.00010621,2]
[348159581,1736358996262,-500.0,0.00010621,2]
[348159582,1736358996286,-500.0,0.00010621,2]
[348159583,1736358996310,-500.0,0.00010621,2]
[348159584,1736358996334,-500.0,0.00010621,2]
[348159585,1736358996358,-656.53,0.00010621,2]
[348159586,1736358996383,-500.0,0.00010621,2]
[348159587,1736358996407,-500.0,0.00010621,2]
[348159588,1736358996430,-500.0,0.00010621,2]
[348159589,1736358996455,-542.5,0.00010621,2]
[348159590,1736358996480,-1155.97,0.00010621,2]
[348159591,1736358996504,-500.0,0.00010621,2]
[348159592,1736358996528,-500.0,0.00010621,2]
[348159593,1736358996551,-621.96,0.00010621,2]
[348159594,1736358996575,-500.0,0.00010621,2]
[348159595,1736358996599,-500.0,0.00010621,2]
[348159596,1736358996623,-1380.91,0.00010621,2]
[348159597,1736358996648,-780.58,0.00010621,2]
[348159598,1736358996672,-798.71,0.00010621,2]
[348159599,1736358996696,-500.0,0.00010621,2]
[348159600,1736358996721,-604.69,0.00010621,2]
[348159601,1736358996745,-639.6,0.00010621,2]
[348159602,1736358996768,-590.31,0.00010621,2]
[348159603,1736358996792,-312.23,0.00010621,2]
[348159604,1736358996815,-519.97,0.00010621,2]
[348159605,1736358996839,-500.0,0.00010621,2]
[348159606,1736358996863,-500.0,0.00010621,2]
[348159607,1736358996887,-832.31,0.00010621,2]
[348159608,1736358996914,-500.0,0.00010621,2]
[348159609,1736358996939,-500.0,0.00010621,2]
[348159610,1736358996967,-627.12,0.00010621,2]
[348159611,1736358996993,-552.99,0.00010621,2]
[348159612,1736358997017,-500.0,0.00010621,2]
[348159613,1736358997040,-500.0,0.00010621,2]
[348159614,1736358997064,-500.0,0.00010621,2]
[348159615,1736358997087,-500.0,0.00010621,2]
[348159616,1736358997111,-621.7,0.00010621,2]
[348159617,1736358997134,-500.0,0.00010621,2]
[348159618,1736358997157,-510.54,0.00010621,2]
[348159619,1736358997188,-1249.9,0.00010621,2]
[348159620,1736358997215,-500.0,0.00010621,2]
[348159621,1736358997238,-500.0,0.00010621,2]
[348159622,1736358997261,-500.0,0.00010621,2]
[348159623,1736358997284,-500.0,0.00010621,2]
[348159624,1736358997308,-500.0,0.00010621,2]
[348159625,1736358997333,-1811.39,0.00010621,2]
[348159626,1736358997356,-500.0,0.00010621,2]
[348159627,1736358997381,-500.0,0.00010621,2]
[348159628,1736358997406,-500.0,0.00010621,2]
[348159629,1736358997430,-500.0,0.00010621,2]
[348159630,1736358997458,-1179.45,0.00010621,2]
[348159631,1736358997482,-537.46413234,0.00010621,2]
[348159632,1736358997506,-500.0,0.00010621,2]
[348159633,1736358997532,-2286.74,0.00010621,2]
[348159634,1736358997556,-500.0,0.00010621,2]
[348159635,1736358997580,-500.0,0.00010621,2]
[348159636,1736358997604,-500.0,0.00010621,2]
[348159637,1736358997628,-500.0,0.00010621,2]
[348159638,1736358997652,-500.0,0.00010621,2]
[348159639,1736358997675,-500.0,0.00010621,2]
[348159640,1736358997702,-500.0,0.00010621,2]
[348159641,1736358997727,-500.0,0.00010621,2]
[348159642,1736358997751,-500.0,0.00010621,2]
[348159643,1736358997775,-1816.03,0.00010621,2]
[348159644,1736358997799,-500.0,0.00010621,2]
[348159645,1736358997823,-500.0,0.00010621,2]
[348159646,1736358997846,-610.02493744,0.00010621,2]
[348159647,1736358997870,-500.0,0.00010621,2]
[348159648,1736358997894,-500.0,0.00010621,2]
[348159649,1736358997920,-66.16808134,0.00010621,2]
[348159650,1736359023282,226.35,0.00017,60]
[348159651,1736359029244,812.94,8.219e-05,2]
[348159704,1736359767417,177.87,7.028e-05,2]
[348159718,1736359832340,-300.0,8.763e-05,2]
[348159719,1736359832350,-220.41,8.764e-05,2]
[348159720,1736359832362,-982.68,8.764e-05,2]
[348159721,1736359832371,-1511.26,8.764e-05,2]
[348159722,1736359832381,-250.0,8.764e-05,2]
[348159723,1736359832390,-200.0,8.764e-05,2]
[348159724,1736359832400,-8106.06,8.764e-05,2]
[348159725,1736359832457,-3723.68140962,8.764e-05,2]
[348159726,1736359832469,-506.6,8.764e-05,2]
[348159727,1736359832579,-8022.22529559,8.764e-05,2]
[348159728,1736359832589,-255.3,8.834e-05,2]
[348159729,1736359832599,-1132.12,8.851e-05,2]
[348159730,1736359832608,-679.9,8.908e-05,2]
[348159731,1736359832618,-250.0,8.97e-05,2]
[348159732,1736359832628,-166.66,9.027e-05,2]
[348159733,1736359832638,-5812.01,9.16e-05,2]
[348159734,1736359832647,-2000.0,9.191e-05,2]
[348159735,1736359832657,-150.0,9.263e-05,2]
[348159736,1736359832667,-23900.0,9.264e-05,2]
[348159737,1736359832676,-353.49,9.264e-05,2]
[348159738,1736359832686,-166.66,9.325e-05,2]
[348159739,1736359832695,-373.7889,9.489e-05,2]
[348159740,1736359832705,-177.94,9.512e-05,2]
[348159741,1736359832714,-166.66,9.623e-05,2]
[348159742,1736359832723,-420.0,9.639e-05,2]
[348159743,1736359832733,-438.32,9.665e-05,2]
[348159744,1736359832743,-1852.42,9.697e-05,2]
[348159745,1736359832752,-275.7953,9.699e-05,2]
[348159746,1736359832761,-311.4972,9.699e-05,2]
[348159747,1736359832771,-640.215,9.699e-05,2]
[348159748,1736359832781,-3862.3307,9.699e-05,2]
[348159749,1736359832791,-500.0,9.799e-05,2]
[348159750,1736359832800,-500.0,9.799e-05,2]
[348159751,1736359832809,-405.07,9.799e-05,2]
[348159752,1736359832819,-500.0,9.799e-05,2]
[348159753,1736359832830,-500.0,9.799e-05,2]
[348159754,1736359832839,-462.19338936,9.799e-05,2]
[348159756,1736359832850,-500.0,9.799e-05,2]
[348159757,1736359832860,-500.0,9.799e-05,2]
[348159758,1736359832869,-500.0,9.799e-05,2]
[348159759,1736359832879,-500.0,9.799e-05,2]
[348159760,1736359832889,-500.0,9.799e-05,2]
[348159761,1736359832900,-500.0,9.799e-05,2]
[348159762,1736359832910,-174.05183452,9.799e-05,2]
[348159763,1736359832921,-500.0,9.799e-05,2]
[348159764,1736359832931,-500.0,9.799e-05,2]
[348159766,1736359832941,-500.0,9.799e-05,2]
[348159768,1736359832951,-432.93197646,9.799e-05,2]
[348159770,1736359832960,-500.0,9.799e-05,2]
[348159771,1736359832969,-500.0,9.799e-05,2]
[348159773,1736359832979,-500.0,9.799e-05,2]
[348159775,1736359832988,-500.0,9.799e-05,2]
[348159778,1736359832998,-500.0,9.799e-05,2]
[348159780,1736359833008,-500.0,9.799e-05,2]
[348159782,1736359833018,-500.0,9.799e-05,2]
[348159784,1736359833027,-500.0,9.799e-05,2]
[348159786,1736359833037,-500.0,9.799e-05,2]
[348159788,1736359833047,-500.0,9.799e-05,2]
[348159790,1736359833056,-500.0,9.799e-05,2]
[348159792,1736359833066,-500.0,9.799e-05,2]
[348159794,1736359833076,-500.0,9.799e-05,2]
[348159796,1736359833088,-500.0,9.799e-05,2]
[348159798,1736359833099,-500.0,9.799e-05,2]
[348159799,1736359833108,-500.0,9.799e-05,2]
[348159801,1736359833119,-500.0,9.799e-05,2]
[348159804,1736359833129,-500.0,9.799e-05,2]
[348159806,1736359833139,-500.0,9.799e-05,2]
[348159808,1736359833150,-500.0,9.799e-05,2]
[348159810,1736359833161,-500.0,9.799e-05,2]
[348159812,1736359833170,-500.0,9.799e-05,2]
[348159814,1736359833182,-500.0,9.799e-05,2]
[348159816,1736359833192,-500.0,9.799e-05,2]
[348159818,1736359833201,-500.0,9.799e-05,2]
[348159820,1736359833211,-500.0,9.799e-05,2]
[348159822,1736359833220,-500.0,9.799e-05,2]
[348159824,1736359833230,-500.0,9.799e-05,2]
[348159826,1736359833239,-500.0,9.799e-05,2]
[348159828,1736359833249,-500.0,9.799e-05,2]
[348159830,1736359833262,-500.0,9.799e-05,2]
[348159832,1736359833273,-500.0,9.799e-05,2]
[348159834,1736359833284,-500.0,9.799e-05,2]
[348159836,1736359833297,-500.0,9.799e-05,2]
[348159838,1736359833308,-500.0,9.799e-05,2]
[348159840,1736359833318,-500.0,9.799e-05,2]
[348159842,1736359833330,-500.0,9.799e-05,2]
[348159844,1736359833340,-500.0,9.799e-05,2]
[348159846,1736359833350,-500.0,9.799e-05,2]
[348159848,1736359833360,-561.5240863,9.799e-05,2]
[348159850,1736359833370,-500.0,9.799e-05,2]
[348159852,1736359833381,-500.0,9.799e-05,2]
[348159854,1736359833390,-500.0,9.799e-05,2]
[348159856,1736359833401,-500.0,9.799e-05,2]
[348159858,1736359833410,-500.0,9.799e-05,2]
[348159860,1736359833420,-500.0,9.799e-05,2]
[348159862,1736359833430,-500.0,9.799e-05,2]
[348159864,1736359833440,-500.0,9.799e-05,2]
[348159866,1736359833448,-500.0,9.799e-05,2]
[348159868,1736359833458,-500.0,9.799e-05,2]
[348159870,1736359833470,-500.0,9.799e-05,2]
[348159872,1736359833480,-430.57281889,9.799e-05,2]
[348159874,1736359833490,-500.0,9.799e-05,2]
[348159876,1736359833500,-500.0,9.799e-05,2]
[348159878,1736359833510,-500.0,9.799e-05,2]
[348159880,1736359833520,-500.0,9.799e-05,2]
[348159882,1736359833530,-500.0,9.799e-05,2]
[348159884,1736359833540,-515.5,9.799e-05,2]
[348159886,1736359833550,-500.0,9.799e-05,2]
[348159888,1736359833559,-500.0,9.799e-05,2]